[Event "FIDE WCCC G12 2018"]
[Site "Santiago de Compostela"]
[Date "2018.11.04"]
[Round "1"]
[White "Sheikh, Anum"]
[Black "Badalyan, Seda"]
[Result "1-0"]
[ECO "C45"]
[WhiteElo "1770"]
[BlackElo "1466"]
[Annotator "NA RC"]
[PlyCount "117"]
[EventDate "2018.11.04"]
[EventType "swiss"]
[EventCountry "ESP"]
[SourceTitle "playchess.com"]
[Source "ChessBase"]
[SourceQuality "1"]
[TimeControl "40/5400+30:1800+30"]

1. e4 {[%emt 0:00:00]} e5 {[%emt 0:00:00]} 2. Nf3 {[%emt 0:00:00]} Nc6 {[%emt 0:00:00]} 3. d4 {[%emt 0:00:00]} exd4 {[%emt 0:00:00]} 4. Nxd4 {[%emt 0:00:00]} Bc5 {[%emt 0:00:08]} 5. Nb3 {[%emt 0:00:00]} Bb6 {[%emt 0:00:07]} 6. Qe2 {[%emt 0:00:02]} d6 {[%emt 0:01:30]} 7. Nc3 {[%emt 0:00:37]} a5 {[%emt 0:00:55]} 8. Na4 {[%emt 0:09:17]} Ba7 {[%emt 0:03:28]} 9. Be3 {[%emt 0:02:38]} Bxe3 {[%emt 0:02:18]} 10. Qxe3 {[%emt 0:00:16]} Nge7 {[%emt 0:04:09]} 11. Bb5 {[%emt 0:00:43]} O-O {[%emt 0:01:05]} 12. O-O-O {[%emt 0:05:18]} Kh8 {[%emt 0:09:55]} 13. Kb1 {[%emt 0:03:15]} f5 {[%emt 0:02:59]} 14. f3 {[%emt 0:01:43]} fxe4 {[%emt 0:01:42]} 15. Qxe4 {[%emt 0:02:13]} Bf5 {[%emt 0:01:15]} 16. Qe2 {[%emt 0:01:09]} Ne5 {[%emt 0:05:34]} 17. Nd4 {[%emt 0:02:05]} Bd7 {[%emt 0:05:56]} 18. Bxd7 {[%emt 0:01:41]} Qxd7 {[%emt 0:01:09]} 19. Nc3 {[%emt 0:00:27]} N7c6 {[%emt 0:02:52]} 20. Nd5 {[%emt 0:22:32]} Nxd4 {[%emt 0:02:29]} 21. Rxd4 {[%emt 0:00:17]} Rae8 {[%emt 0:00:59]} 22. Qd1 {[%emt 0:05:17]} Nc6 {[%emt 0:03:03]} 23. Rf4 {[%emt 0:04:06]} Rxf4 {[%emt 0:01:32]} 24. Nxf4 {[%emt 0:00:08]} Qf7 {[%emt 0:06:55]} 25. Nd5 {[%emt 0:01:29]} Re5 {[%emt 0:01:02]} 26. Nc3 {[%emt 0:02:24]} d5 {[%emt 0:15:19]} 27. a3 {[%emt 0:01:20]} Ne7 {[%emt 0:02:19]} 28. Qd4 {[%emt 0:01:16]} Nc6 {[%emt 0:03:03]} 29. Qd2 {[%emt 0:01:43]} Ne7 {[%emt 0:03:24]} 30. f4 {[%emt 0:09:18]} Rf5 {[%emt 0:03:27]} 31. g3 {[%emt 0:02:40]} Rf6 {[%emt 0:03:07]} 32. Re1 {[%emt 0:02:21]} Re6 {[%emt 0:01:05]} 33. Nb5 {[%emt 0:06:59]} c6 {[%emt 0:02:34]} 34. Nd4 {[%emt 0:01:29]} Rxe1+ {[%emt 0:01:01]} 35. Qxe1 {[%emt 0:00:06]} b6 {[%emt 0:01:10]} 36. Qe5 {[%emt 0:00:48]} c5 {[%emt 0:03:37]} 37. Ne6 {[%emt 0:01:35]} Qg8 {[%emt 0:01:48]} 38. f5 {[%emt 0:02:56]} Qf7 {[%emt 0:03:01]} 39. g4 {[%emt 0:00:24]} d4 {[%emt 0:02:09]} 40. Nxg7 {[%emt 0:00:00]} Nc6 {[%emt 0:00:00]} 41. Qd6 {[%emt 0:03:49]} Qxg7 {[%emt 0:03:12]} 42. Qxc6 {[%emt 0:02:00]} Qxg4 {[%emt 0:01:03]} 43. f6 {[%emt 0:00:28]} Qg1+ {[%emt 0:01:24]} 44. Ka2 {[%emt 0:00:20]} Qg8+ {[%emt 0:00:06]} 45. b3 {[%emt 0:00:23]} Qg6 {[%emt 0:00:17]} 46. Kb2 {[%emt 0:01:01]} Kg8 {[%emt 0:01:46]} 47. Qe6+ {[%emt 0:01:16]} Kf8 {[%emt 0:00:45]} 48. Qxb6 {[%emt 0:01:08]} d3 {[%emt 0:01:01]} 49. Qxc5+ {[%emt 0:01:24]} Kf7 {[%emt 0:01:17]} 50. Qe7+ {[%emt 0:00:15]} Kg8 {[%emt 0:00:05]} 51. Qd8+ {[%emt 0:00:11]} Kf7 {[%emt 0:00:04]} 52. Qxd3 {[%emt 0:00:09]} Qxf6+ {[%emt 0:00:08]} 53. Qc3 {[%emt 0:00:28]} Qf5 {[%emt 0:00:32]} 54. Qc4+ {[%emt 0:01:08]} Kg6 {[%emt 0:00:16]} 55. Qd4 {[%emt 0:00:10]} h5 {[%emt 0:00:37]} 56. Qd3 {[%emt 0:00:14]} h4 57. b4 {[%emt 0:00:18]} axb4 {[%emt 0:02:01]} 58. axb4 {[%emt 0:00:05]} h3 {[%emt 0:00:05]} 59. b5 {[%emt 0:00:22]} 1-0

[Event "FIDE WCCC G12 2018"]
[Site "Santiago de Compostela"]
[Date "2018.11.04"]
[Round "1"]
[White "Wagner, Margarethe"]
[Black "Ter-Avetisjana, Agnesa Stepania"]
[Result "1-0"]
[ECO "C60"]
[WhiteElo "1766"]
[BlackElo "1439"]
[Annotator "NA RC"]
[PlyCount "87"]
[EventDate "2018.11.04"]
[EventType "swiss"]
[EventCountry "ESP"]
[SourceTitle "playchess.com"]
[Source "ChessBase"]
[SourceQuality "1"]
[TimeControl "40/5400+30:1800+30"]

1. e4 {[%emt 0:00:00]} e5 {[%emt 0:00:00]} 2. Nf3 {[%emt 0:00:00]} Nc6 {[%emt 0:00:00]} 3. Bb5 {[%emt 0:00:14]} Nge7 {[%emt 0:02:20]} 4. d3 {[%emt 0:03:28]} a6 {[%emt 0:01:57]} 5. Ba4 {[%emt 0:01:49]} g6 {[%emt 0:09:06]} 6. c3 {[%emt 0:06:04]} Bg7 {[%emt 0:03:13]} 7. Bg5 {[%emt 0:04:06]} O-O {[%emt 0:06:22]} 8. Nbd2 {[%emt 0:03:33]} d6 {[%emt 0:02:55]} 9. h3 {[%emt 0:06:01]} Be6 {[%emt 0:03:44]} 10. Qe2 {[%emt 0:03:51]} b5 {[%emt 0:01:56]} 11. Bc2 {[%emt 0:01:42]} Qd7 {[%emt 0:06:25]} 12. O-O {[%emt 0:03:52]} f5 {[%emt 0:04:35]} 13. Bb3 {[%emt 0:05:04]} Bxb3 {[%emt 0:02:37]} 14. Nxb3 {[%emt 0:00:41]} f4 {[%emt 0:02:02]} 15. Bxe7 {[%emt 0:05:47]} Qxe7 {[%emt 0:01:40]} 16. Qc2 {[%emt 0:02:18]} h5 {[%emt 0:06:35]} 17. c4 {[%emt 0:06:03]} Nb4 {[%emt 0:08:31]} 18. Qc3 {[%emt 0:01:06]} c5 {[%emt 0:01:17]} 19. a3 {[%emt 0:04:38]} Nc6 {[%emt 0:03:13]} 20. Na5 {[%emt 0:02:38]} Nxa5 {[%emt 0:02:58]} 21. Qxa5 {[%emt 0:00:07]} Qb7 {[%emt 0:00:37]} 22. Qc3 {[%emt 0:05:01]} Rab8 {[%emt 0:13:02]} 23. Rfb1 {[%emt 0:02:07]} Qe7 {[%emt 0:01:58]} 24. b4 {[%emt 0:02:48]} g5 {[%emt 0:03:09]} 25. bxc5 {[%emt 0:01:33]} dxc5 {[%emt 0:00:09]} 26. cxb5 {[%emt 0:00:26]} axb5 {[%emt 0:00:18]} 27. Rxb5 {[%emt 0:02:57]} Rxb5 {[%emt 0:01:24]} 28. Qc4+ {[%emt 0:00:06]} Kh8 {[%emt 0:00:03]} 29. Qxb5 {[%emt 0:00:40]} g4 {[%emt 0:00:24]} 30. hxg4 {[%emt 0:05:39]} hxg4 {[%emt 0:00:29]} 31. Nd2 {[%emt 0:02:13]} Qd6 {[%emt 0:04:27]} 32. Rc1 {[%emt 0:03:36]} Rc8 {[%emt 0:01:04]} 33. a4 {[%emt 0:00:50]} Bf8 {[%emt 0:01:00]} 34. a5 {[%emt 0:02:22]} Rb8 {[%emt 0:00:48]} 35. Qc4 {[%emt 0:01:21]} Qd4 {[%emt 0:03:03]} 36. Qxd4 {[%emt 0:00:53]} cxd4 {[%emt 0:00:22]} 37. Nc4 {[%emt 0:01:29]} Bg7 {[%emt 0:00:23]} 38. Nb6 {[%emt 0:01:26]} Rb7 {[%emt 0:00:50]} 39. Rc6 {[%emt 0:03:06]} Ra7 {[%emt 0:01:11]} 40. Nc4 {[%emt 0:00:00]} Kh7 {[%emt 0:00:00]} 41. a6 {[%emt 0:01:01]} Kg8 {[%emt 0:01:37]} 42. Nd6 {[%emt 0:04:00]} Kf8 {[%emt 0:00:52]} 43. Nb5 {[%emt 0:01:07]} Ra8 {[%emt 0:00:20]} 44. a7 {[%emt 0:00:09]} 1-0

[Event "FIDE WCCC G12 2018"]
[Site "Santiago de Compostela"]
[Date "2018.11.04"]
[Round "1"]
[White "Dakic, Marta"]
[Black "Suarez Gomez, Paula"]
[Result "1-0"]
[ECO "C00"]
[WhiteElo "1756"]
[BlackElo "1417"]
[Annotator "NA RC"]
[PlyCount "99"]
[EventDate "2018.11.04"]
[EventType "swiss"]
[EventCountry "ESP"]
[SourceTitle "playchess.com"]
[Source "ChessBase"]
[SourceQuality "1"]
[TimeControl "40/5400+30:1800+30"]

1. e4 {[%emt 0:00:00]} e6 {[%emt 0:00:00]} 2. Qe2 {[%emt 0:00:00]} Nc6 {[%emt 0:10:19]} 3. Nf3 {[%emt 0:00:32]} Nf6 {[%emt 0:01:40]} 4. g3 {[%emt 0:03:10]} d5 {[%emt 0:05:33]} 5. d3 {[%emt 0:02:44]} Be7 {[%emt 0:05:03]} 6. Bg2 {[%emt 0:02:29]} b6 {[%emt 0:04:55]} 7. a3 {[%emt 0:09:31]} Ba6 {[%emt 0:07:05]} 8. Nbd2 {[%emt 0:02:13]} h6 {[%emt 0:05:26]} 9. O-O {[%emt 0:04:32]} g5 {[%emt 0:04:30]} 10. exd5 {[%emt 0:05:28]} Nxd5 {[%emt 0:00:48]} 11. Nb3 {[%emt 0:01:45]} Qd7 {[%emt 0:04:11]} 12. Ne5 {[%emt 0:06:44]} Nxe5 {[%emt 0:02:20]} 13. Qxe5 {[%emt 0:00:08]} Bf6 {[%emt 0:01:09]} 14. Qe2 {[%emt 0:01:42]} O-O-O {[%emt 0:03:13]} 15. a4 {[%emt 0:08:06]} Bb7 {[%emt 0:10:19]} 16. a5 {[%emt 0:03:05]} Bg7 {[%emt 0:01:04]} 17. axb6 {[%emt 0:00:35]} axb6 {[%emt 0:00:43]} 18. d4 {[%emt 0:05:02]} Kb8 {[%emt 0:04:33]} 19. c3 {[%emt 0:03:49]} Qc8 {[%emt 0:05:36]} 20. Qb5 {[%emt 0:07:07]} Qd7 {[%emt 0:02:35]} 21. Qc4 {[%emt 0:01:18]} Qc6 {[%emt 0:01:13]} 22. Nd2 {[%emt 0:07:35]} Qxc4 {[%emt 0:02:18]} 23. Nxc4 {[%emt 0:00:02]} Rhe8 {[%emt 0:02:24]} 24. Re1 {[%emt 0:03:28]} Nf6 {[%emt 0:05:07]} 25. Ne5 {[%emt 0:01:16]} Bxg2 {[%emt 0:00:57]} 26. Kxg2 {[%emt 0:00:06]} Kb7 {[%emt 0:01:21]} 27. Nxf7 {[%emt 0:00:51]} Rd5 {[%emt 0:01:55]} 28. Ne5 {[%emt 0:01:30]} Rb5 {[%emt 0:02:44]} 29. Ra2 {[%emt 0:03:57]} Rd5 {[%emt 0:01:35]} 30. h3 {[%emt 0:00:45]} Nh7 {[%emt 0:01:03]} 31. f4 {[%emt 0:01:04]} Bf6 {[%emt 0:00:50]} 32. b4 {[%emt 0:02:00]} Nf8 {[%emt 0:00:45]} 33. Rae2 {[%emt 0:00:59]} Re7 {[%emt 0:00:57]} 34. Re4 {[%emt 0:02:35]} Rd8 {[%emt 0:00:20]} 35. Ng4 {[%emt 0:01:05]} Bg7 {[%emt 0:01:07]} 36. f5 {[%emt 0:00:28]} Rf7 {[%emt 0:00:47]} 37. fxe6 {[%emt 0:00:41]} Re7 {[%emt 0:00:27]} 38. h4 {[%emt 0:01:18]} Rd6 {[%emt 0:00:57]} 39. hxg5 {[%emt 0:00:30]} hxg5 {[%emt 0:00:08]} 40. Bxg5 {[%emt 0:00:00]} Rexe6 {[%emt 0:00:00]} 41. Rxe6 {[%emt 0:04:09]} Rxe6 {[%emt 0:02:49]} 42. Rxe6 {[%emt 0:00:54]} Nxe6 43. Bf6 {[%emt 0:00:55]} Bf8 {[%emt 0:02:32]} 44. d5 {[%emt 0:02:33]} Ng7 {[%emt 0:01:54]} 45. Ne3 {[%emt 0:02:20]} Nh5 {[%emt 0:02:37]} 46. Be5 {[%emt 0:00:43]} Bh6 {[%emt 0:01:54]} 47. Kf3 {[%emt 0:00:16]} Ng7 {[%emt 0:01:59]} 48. g4 {[%emt 0:00:40]} Ne8 {[%emt 0:01:18]} 49. Nf5 {[%emt 0:00:32]} Bf8 {[%emt 0:00:53]} 50. g5 {[%emt 0:00:22]} 1-0

[Event "FIDE WCCC G12 2018"]
[Site "Santiago de Compostela"]
[Date "2018.11.04"]
[Round "1"]
[White "Mihelic, Vesna"]
[Black "Velea, Stephanie"]
[Result "1-0"]
[ECO "B53"]
[WhiteElo "1741"]
[BlackElo "1412"]
[Annotator "NA RC"]
[PlyCount "115"]
[EventDate "2018.11.04"]
[EventType "swiss"]
[EventCountry "ESP"]
[SourceTitle "playchess.com"]
[Source "ChessBase"]
[SourceQuality "1"]
[TimeControl "40/5400+30:1800+30"]

1. e4 {[%emt 0:00:00]} c5 {[%emt 0:00:00]} 2. Nf3 {[%emt 0:00:00]} d6 {[%emt 0:00:00]} 3. d4 {[%emt 0:00:12]} cxd4 {[%emt 0:00:00]} 4. Qxd4 {[%emt 0:00:22]} a6 {[%emt 0:00:00]} 5. h3 {[%emt 0:00:29]} Nc6 {[%emt 0:00:00]} 6. Qe3 {[%emt 0:00:34]} g6 {[%emt 0:00:30]} 7. c4 {[%emt 0:00:35]} Bg7 {[%emt 0:00:24]} 8. Be2 {[%emt 0:00:48]} Nf6 {[%emt 0:01:21]} 9. Nc3 {[%emt 0:00:59]} O-O {[%emt 0:00:50]} 10. O-O {[%emt 0:00:35]} Be6 {[%emt 0:01:47]} 11. Rb1 {[%emt 0:02:50]} Nd7 {[%emt 0:01:47]} 12. Ng5 {[%emt 0:16:18]} Rc8 {[%emt 0:03:57]} 13. b3 {[%emt 0:05:58]} Nc5 {[%emt 0:07:18]} 14. Bb2 {[%emt 0:03:50]} Bd7 {[%emt 0:19:11]} 15. Nd5 {[%emt 0:09:12]} f6 {[%emt 0:18:24]} 16. Nf3 {[%emt 0:00:45]} e6 {[%emt 0:04:56]} 17. Nc3 {[%emt 0:01:09]} Qc7 {[%emt 0:12:06]} 18. Rfd1 {[%emt 0:02:59]} Rfd8 {[%emt 0:01:06]} 19. Ba3 {[%emt 0:13:00]} Ne5 {[%emt 0:06:12]} 20. Nxe5 {[%emt 0:01:19]} dxe5 {[%emt 0:01:55]} 21. Rd2 {[%emt 0:03:58]} b6 {[%emt 0:05:09]} 22. Rbd1 {[%emt 0:01:46]} Bf8 {[%emt 0:04:00]} 23. Bb2 {[%emt 0:01:21]} Bc6 24. Bg4 {[%emt 0:04:32]} Kf7 {[%emt 0:07:06]} 25. Bf3 {[%emt 0:01:48]} Rd7 {[%emt 0:00:21]} 26. g4 {[%emt 0:05:00]} Rcd8 {[%emt 0:00:03]} 27. Bg2 {[%emt 0:00:42]} Rxd2 {[%emt 0:00:15]} 28. Rxd2 {[%emt 0:00:08]} Rxd2 {[%emt 0:00:02]} 29. Qxd2 {[%emt 0:00:02]} Qd7 {[%emt 0:00:02]} 30. Qxd7+ {[%emt 0:04:00]} Bxd7 {[%emt 0:00:01]} 31. Bc1 {[%emt 0:01:40]} Bc6 {[%emt 0:00:13]} 32. Be3 {[%emt 0:01:15]} Ke8 {[%emt 0:01:13]} 33. Kf1 {[%emt 0:04:27]} Kd7 {[%emt 0:00:13]} 34. Ke2 {[%emt 0:00:31]} Kc7 {[%emt 0:00:34]} 35. f3 {[%emt 0:00:50]} Kb7 {[%emt 0:00:21]} 36. h4 {[%emt 0:00:35]} Bd6 {[%emt 0:00:56]} 37. Bh6 {[%emt 0:01:47]} Be7 {[%emt 0:00:44]} 38. Nd1 {[%emt 0:02:52]} Nd7 {[%emt 0:01:04]} 39. Nf2 {[%emt 0:00:32]} Bf8 {[%emt 0:00:34]} 40. Be3 {[%emt 0:00:00]} Bc5 {[%emt 0:00:00]} 41. Bxc5 {[%emt 0:03:37]} Nxc5 {[%emt 0:08:14]} 42. Nd3 {[%emt 0:00:56]} Nd7 {[%emt 0:05:29]} 43. Nb4 {[%emt 0:00:44]} h6 {[%emt 0:03:27]} 44. Kd3 {[%emt 0:03:52]} g5 {[%emt 0:02:43]} 45. Nxc6 {[%emt 0:01:20]} Kxc6 {[%emt 0:00:21]} 46. h5 {[%emt 0:00:09]} Nb8 {[%emt 0:02:42]} 47. Bf1 {[%emt 0:01:34]} Kd6 {[%emt 0:05:45]} 48. Kc3 {[%emt 0:00:48]} Kc6 {[%emt 0:01:57]} 49. b4 {[%emt 0:00:35]} Nd7 {[%emt 0:02:59]} 50. a4 {[%emt 0:02:23]} Nb8 {[%emt 0:02:50]} 51. Bd3 {[%emt 0:00:33]} a5 {[%emt 0:00:45]} 52. c5 {[%emt 0:02:41]} axb4+ {[%emt 0:01:05]} 53. Kxb4 {[%emt 0:00:09]} bxc5+ {[%emt 0:00:24]} 54. Kc3 {[%emt 0:00:11]} Kb6 {[%emt 0:00:55]} 55. Bb5 {[%emt 0:00:13]} Nc6 {[%emt 0:02:44]} 56. Bxc6 {[%emt 0:00:09]} Kxc6 {[%emt 0:00:02]} 57. Kc4 {[%emt 0:00:10]} Kb6 {[%emt 0:00:49]} 58. a5+ {[%emt 0:00:07]} 1-0

[Event "FIDE WCCC G12 2018"]
[Site "Santiago de Compostela"]
[Date "2018.11.04"]
[Round "1"]
[White "Huseynova, Guluzar"]
[Black "Van Foreest, Machteld"]
[Result "1-0"]
[ECO "A46"]
[WhiteElo "1551"]
[BlackElo "2003"]
[Annotator "NA RC"]
[PlyCount "77"]
[EventDate "2018.11.04"]
[EventType "swiss"]
[EventCountry "ESP"]
[SourceTitle "playchess.com"]
[Source "ChessBase"]
[SourceQuality "1"]
[TimeControl "40/5400+30:1800+30"]

{[%evp 15,77,-12,32767,32767,32767,-8,-14,-43,32767,32767,32767,32767,32767,32767,32767,-282,32767,-385,32767,-507,-540,-554,-228,-231,-197,-214,-214,-193,32767,32767,32767,32767,32767,32767,32767,32767,32767,32767,32767,32767,-95,-191,-170,-206,32767,-202,-197,-220,32767,264,426,439,409,32767,32767,869,752,945,927,883,4710,2230,29981,29984]} 1. d4 {[%emt 0:00:00]} Nf6 {[%emt 0:00:00]} 2. Nf3 {[%emt 0:00:00]} e6 {[%emt 0:00:00]} 3. Bf4 {[%emt 0:00:00]} b6 {[%emt 0:01:14]} 4. e3 {[%emt 0:00:01]} Bb7 {[%emt 0:00:17]} 5. c3 {[%emt 0:00:55]} Be7 {[%emt 0:01:12]} 6. Bd3 {[%emt 0:00:32]} O-O {[%emt 0:00:56]} 7. Nbd2 {[%emt 0:00:24]} c5 {[%emt 0:02:27]} 8. Qc2 {[%emt 0:01:25] A47: 1 d4 Nf6 2 Nf3 b6: Torre, London and Colle Systems} (8. Qe2 Nc6 9. a3 Rc8 10. e4 d6 11. O-O Qc7 12. h3 e5 13. dxe5 Nxe5 14. Nxe5 dxe5 15. Bh2 Rcd8 {1-0 (29) Radjabov,T (2784)-Tomashevsky,E (2738) Moscow 2012}) 8... d5 {[%emt 0:01:10]} 9. Be5 {[%emt 0:03:08]} Kh8 $146 {[%emt 0:06:15] [#]} ({Predecessor:} 9... Nbd7 10. Bg3 c4 11. Be2 b5 12. a3 a5 13. O-O a4 {0-1 (52) Wolf,F (1279)-Kyas,P (1822) Rotenburg 2008}) 10. O-O {[%emt 0:07:08]} (10. Ng5 $1 $16 g6 11. Bf4) 10... Nc6 {[%emt 0:01:18]} 11. e4 {[%emt 0:05:48]} cxd4 {[%emt 0:08:03]} 12. cxd4 {[%emt 0:08:11]} Nb4 {[%emt 0:13:41]} 13. Qb3 {[%emt 0:04:14]} Nxd3 {[%emt 0:02:34]} 14. Bxf6 {[%emt 0:01:40]} dxe4 {[%emt 0:00:46]} 15. Bxe7 {[%emt 0:03:13]} Qxe7 {[%emt 0:00:07]} 16. Ne5 {[%emt 0:18:36]} (16. Ne1 {might work better.}) 16... Qg5 {[%emt 0:02:03]} 17. Qd1 {[%emt 0:12:51]} Nxe5 {[%emt 0:05:53]} 18. dxe5 {[%emt 0:02:02]} Qxe5 $2 {[%emt 0:00:43]} (18... Rfd8 19. f4 exf3) 19. b3 {[%emt 0:01:54]} e3 {[%emt 0:02:30]} 20. Nc4 {[%emt 0:03:08]} exf2+ {[%emt 0:01:04]} 21. Rxf2 {[%emt 0:00:27]} Qc5 {[%emt 0:01:42]} 22. Qd6 {[%emt 0:01:57]} Rad8 {[%emt 0:01:47]} 23. Qxc5 {[%emt 0:02:21]} bxc5 {[%emt 0:00:04]} 24. Na5 {[%emt 0:00:26]} Ba6 {[%emt 0:02:43]} 25. Rc1 {[%emt 0:00:37]} Rd5 {[%emt 0:00:31]} 26. Rfc2 {[%emt 0:00:43]} Rfd8 {[%emt 0:07:07]} 27. Nc6 {[%emt 0:05:02]} Rd1+ {[%emt 0:07:44]} 28. Kf2 {[%emt 0:00:54]} (28. Rxd1 $17 Rxd1+ 29. Kf2) 28... Rxc1 {[%emt 0:01:11]} 29. Rxc1 {[%emt 0:00:08]} Rd2+ {[%emt 0:00:15]} 30. Kg1 {[%emt 0:04:29]} c4 {[%emt 0:06:45]} 31. bxc4 {[%emt 0:01:45]} Bb7 {[%emt 0:00:51]} 32. Rb1 {[%emt 0:00:41]} g6 {[%emt 0:06:06]} (32... Rd7 $142) 33. Rxb7 {[%emt 0:00:10]} Rxa2 {[%emt 0:01:44]} 34. Nxa7 {[%emt 0:00:23]} Rc2 {[%emt 0:01:18]} 35. Rc7 {[%emt 0:00:37]} Kg8 {[%emt 0:00:40]} 36. c5 {[%emt 0:00:13]} Kf8 {[%emt 0:00:07]} 37. c6 {[%emt 0:01:32]} Ra2 {[%emt 0:00:55]} 38. Rb7 {[%emt 0:00:16]} Ke8 {[%emt 0:00:18]} 39. c7 {[%emt 0:00:12]} 1-0

[Event "FIDE WCCC G12 2018"]
[Site "Santiago de Compostela"]
[Date "2018.11.04"]
[Round "1"]
[White "Kaldarova, Ayaulym"]
[Black "Nadzamova, Viktoria"]
[Result "1-0"]
[ECO "B42"]
[WhiteElo "1526"]
[BlackElo "1923"]
[Annotator "NA RC"]
[PlyCount "85"]
[EventDate "2018.11.04"]
[EventType "swiss"]
[EventCountry "ESP"]
[SourceTitle "playchess.com"]
[Source "ChessBase"]
[SourceQuality "1"]
[TimeControl "40/5400+30:1800+30"]

{[%evp 8,75,42,37,32767,32767,32767,41,32767,36,23,32,20,32767,32767,32767,32767,32767,32767,32767,8,16,35,21,25,32767,74,91,72,75,252,32767,32767,32767,32767,32767,32767,204,32767,32767,279,257,552,220,621,310,801,356,833,32767,32767,32767,32767,32767,32767,32767,1108,1100,29987,29988,29993,29994,29994,29992,29992,0,29994,0,29992,29993]} 1. e4 {[%emt 0:00:00]} c5 {[%emt 0:00:00]} 2. Nf3 {[%emt 0:00:00]} e6 {[%emt 0:00:00]} 3. d4 {[%emt 0:00:07]} cxd4 {[%emt 0:00:01]} 4. Nxd4 {[%emt 0:00:03]} a6 {[%emt 0:00:09]} 5. Bd3 {[%emt 0:00:21]} Bc5 {[%emt 0:00:57]} 6. Nb3 {[%emt 0:00:18]} Be7 {[%emt 0:00:10]} 7. Qg4 {[%emt 0:07:30]} Nf6 {[%emt 0:19:57] B42: Sizilianisch (Paulsen-Variante)} (7... g6 8. Qe2 d6 9. a4 Nc6 10. O-O Ne5 11. Kh1 Nf6 12. Nc3 Bd7 13. f4 Nxd3 14. cxd3 O-O 15. Be3 b5 16. a5 {1-0 (48) Aronian,L (2764)-Caruana,F (2816) Paris 2018}) 8. Qg3 {[%emt 0:05:59] LiveBook: 5 Partien} ({Günstiger ist} 8. Qxg7 $16 Rg8 9. Qh6 Rxg2 10. e5) 8... d6 {[%emt 0:02:59]} 9. O-O {[%emt 0:02:29]} O-O {[%emt 0:12:18]} 10. Bh6 {[%emt 0:06:03]} Nh5 $146 {[%emt 0:00:50]} ({Vorgänger:} 10... Ne8 11. Nc3 Bh4 12. Qg4 e5 13. Qh5 gxh6 14. g3 Bf6 15. f4 exf4 16. gxf4 Bxc3 17. bxc3 {0-1 (54) Sharafiev,A (2435)-Faizrakhmanov,R (2422) Kazan 2016}) 11. Qg4 {[%emt 0:01:10]} Bf6 {[%emt 0:04:26]} 12. Qxh5 {[%emt 0:03:10]} gxh6 {[%emt 0:00:54]} 13. Qxh6 {[%emt 0:09:05]} Bxb2 {[%emt 0:09:23]} 14. e5 {[%emt 0:02:39]} f5 {[%emt 0:00:32]} 15. exf6 $1 {[%emt 0:00:24]} Rf7 {[%emt 0:04:00]} 16. N1d2 {[%emt 0:01:41]} Bxa1 {[%emt 0:02:06]} (16... Qxf6 $11 17. Qxf6 Bxf6) 17. Rxa1 {[%emt 0:00:26]} Nd7 {[%emt 0:12:14]} 18. Ne4 {[%emt 0:06:05]} Nf8 $2 {[%emt 0:04:13]} (18... Qf8 $16 {was necessary.} 19. Qg5+ Kh8) 19. Ng5 {[%emt 0:21:03]} Rxf6 {[%emt 0:03:53]} 20. Bxh7+ {[%emt 0:01:05]} Nxh7 {[%emt 0:01:15]} 21. Qxh7+ {[%emt 0:00:10]} Kf8 {[%emt 0:00:11]} 22. Qh8+ {[%emt 0:01:14]} (22. Rd1 $142 Rf5 23. Qh6+ Ke7 24. Ne4) 22... Ke7 {[%emt 0:00:10]} 23. Qg7+ {[%emt 0:00:13]} Ke8 {[%emt 0:00:54]} 24. Ne4 {[%emt 0:03:27]} Rf8 $2 {[%emt 0:02:39]} (24... Rf7 {is a better chance.} 25. Qg3 Kf8 26. Nxd6 Rg7 27. Qf3+ Kg8) 25. Qg6+ {[%emt 0:01:23]} (25. Rd1 $142 d5 {[#]} 26. c4 $1 {[%mdl 512]}) 25... Ke7 $2 {[%emt 0:02:30]} (25... Kd7 26. Rd1 Kc7 27. Rxd6 Qe7) 26. h4 {[%emt 0:05:14]} (26. Rd1 $142 d5 {[#]} 27. c4 $1 {[%mdl 512]}) 26... b6 $2 {[%emt 0:01:49]} (26... Kd7 27. Rd1 Kc7 28. Qg7+ (28. Nxd6 Rg8 $18) 28... Kb8 29. Rxd6 Rg8) 27. Nd4 {[%emt 0:02:28]} Qc7 $2 {[%emt 0:02:55]} (27... Qe8 28. Qg3 e5) 28. Qg7+ {[%emt 0:02:12]} Rf7 {[%emt 0:00:41]} 29. Qg5+ {[%emt 0:00:11]} Kf8 {[%emt 0:01:18]} 30. Qh6+ {[%emt 0:00:37]} Ke7 {[%emt 0:04:48]} 31. Ng5 {[%emt 0:01:47]} Qc3 {[%emt 0:03:33]} 32. Rd1 {[%emt 0:00:38]} Rf8 {[%emt 0:03:14]} 33. Ngxe6 {[%emt 0:00:56]} Rf7 {[%emt 0:00:36]} 34. Qg5+ {[%emt 0:00:31]} Rf6 {[%emt 0:00:21]} 35. Qg7+ $2 {[%emt 0:00:32]} (35. Nf5+ {mates} Kf7 36. Nd8+ Ke8 37. Qg8+ Rf8 38. Qg6+ Kxd8 39. Qxd6+ Ke8 40. Qe7#) 35... Rf7 {[%emt 0:00:58]} 36. Qg5+ {[%emt 0:00:51]} Rf6 {[%emt 0:00:12]} 37. Qg7+ {[%emt 0:05:41]} Rf7 {[%emt 0:00:23]} 38. Nf5+ {[%emt 0:00:18]} Kxe6 {[%emt 0:00:56]} 39. Rxd6+ {[%emt 0:00:24]} Kxf5 {[%emt 0:00:34]} 40. Qxc3 {[%emt 0:00:00]} Bb7 {[%emt 0:00:00]} 41. g4+ {[%emt 0:06:24]} Kxg4 {[%emt 0:01:57]} 42. Qg3+ {[%emt 0:00:11]} Kf5 {[%emt 0:00:12]} 43. Qg6+ 1-0